Workbook

Sheet Lonsan LLC
A1: Income | B1: 694-1 Michigan Court | C1: 694-2Michigan Court | D1: 694-3 Michigan Court | E1: 694-4 Michigan Court | F1: 714 Michigan Court - Unit 1 | G1: 714-2 Michigan Court | H1: 714-3 Michigan Court | I1: 714-4 Michigan Court | J1: Total Mensual | K1: Total Anual
A2: Rent Income | B2: 1350 | C2: 0 | D2: 0 | E2: 1400 | F2: 1450 | G2: 0 | H2: 1350 | I2: 1425 | J2: =+SUM(B2:I2) -> 6975 | K2: =+J2*12 -> 83700
A3: Total Income | J3: =+J2 -> 6975 | K3: =+K2 -> 83700
A5: Lease End On | B5: 2026-08-31 | C5: Empty | D5: Empty | E5: 2027-01-31 | F5: 2026-05-31 | G5: Empty | H5: 2026-12-31 | I5: 2026-03-31
A7: Expense | B7: 694-1 Michigan Court | C7: 694-2Michigan Court | D7: 694-3 Michigan Court | E7: 694-4 Michigan Court | F7: 714 Michigan Court - Unit 1 | G7: 714-2 Michigan Court | H7: 714-3 Michigan Court | I7: 714-4 Michigan Court | J7: Total Mensual | K7: Total Anual
A8: HOA Monthly | B8: 300 | C8: 300 | D8: 300 | E8: 300 | F8: 300 | G8: 300 | H8: 300 | I8: 300 | J8: =+SUM(B8:I8) -> 2400 | K8: =+J8*12 -> 28800
A9: Management Fee | B9: =+B2*7% -> 94.5 | C9: =+C2*8% -> 0 | D9: =+D2*7% -> 0 | E9: 98 | F9: 101.5 | G9: 0 | H9: 94.5 | I9: 99.75 | J9: =+SUM(B9:I9) -> 488.25 | K9: =+J9*12 -> 5859
A10: Property tax | B10: =2115.42/12 -> 176.285 | C10: =2115.42/12 -> 176.285 | D10: =2115.42/12 -> 176.285 | E10: =2115.42/12 -> 176.285 | F10: =1857.12/12 -> 154.76 | G10: =1857.12/12 -> 154.76 | H10: =1857.12/12 -> 154.76 | I10: =1857.12/12 -> 154.76 | J10: =+SUM(B10:I10) -> 1324.18 | K10: =+J10*12 -> 15890.16
A11: Insurance | B11: =+(420)/8 -> 52.5 | C11: =+(420)/8 -> 52.5 | D11: 52.5 | E11: 52.5 | F11: 52.5 | G11: 52.5 | H11: 52.5 | I11: 52.5 | J11: =+SUM(B11:I11) -> 420 | K11: =+J11*12 -> 5040
A12: Total Expense | B12: =+SUM(B8:B11) -> 623.285 | C12: =+SUM(C8:C11) -> 528.785 | D12: =+SUM(D8:D11) -> 528.785 | E12: 626.785 | F12: 608.76 | G12: 507.26 | H12: 601.76 | I12: 607.01 | J12: 4632.43 | K12: =+J12*12 -> 55589.16
A14: Gross monthly income | B14: =+SUM(B2:I2) -> 6975
A15: Net Monthly Income | B15: =+B14-J12 -> 2342.57
A17: Gross annual income | B17: =+B14*12 -> 83700
A18: Annual Net Income | B18: =+B15*12 -> 28110.84
